[Event "Austrian Championship 2022"]
[Site "Vienna"]
[Date "2022.08.12"]
[Round "1.3"]
[White "Sadilek, Maximilian"]
[Black "Kordzadze, Nino"]
[Result "1-0"]
[ECO "D01"]
[WhiteElo "2230"]
[BlackElo "2043"]
[Annotator "TA"]
[PlyCount "113"]
[EventDate "2022.08.12"]
[EventType "swiss"]
[EventCountry "AUT"]
[SourceTitle "playchess.com"]
[Source "ChessBase"]
[SourceQuality "1"]
[TimeControl "40/5400+30:1800+30"]

{[%evp 9,113,8,3,4,57,-1,93,94,89,100,82,86,76,-9,68,48,100,104,95,113,97,100,89,72,72,17,17,2,25,28,26,-15,-14,-27,-25,-23,-23,-34,-41,-589,70,46,106,91,93,89,170,143,172,185,195,194,208,151,168,163,158,162,146,145,135,127,130,118,156,125,175,175,185,165,206,220,231,180,280,268,304,302,309,297,302,282,283,286,278,249,231,0,279,269,291,275,279,283,314,292,290,279,406,300,329,314,344,268,330,301]} 1. Nc3 {[%emt 0:00:16]} d5 {[%emt 0:02:31]} 2. d4 {[%emt 0:00:08][%cal Bd2d4,Bd4d5][%mdl 32]} Nf6 {[%emt 0:00:58]} 3. Bg5 {[%emt 0:00:22]} Bf5 {[%emt 0:02:44]} 4. f3 {[%emt 0:00:24]} Nc6 {[%emt 0:10:20]} 5. e4 {[%emt 0:06:19]} dxe4 {[%emt 0:04:00]} 6. d5 {[%emt 0:15:00] D01: Veresov Opening.} Ne5 {[%emt 0:15:51]} (6... Nb4 $11 7. Qe2 Nfxd5) 7. Qd4 {[%emt 0:05:07] [#]} (7. fxe4 $1 $14 Nxe4 8. Qd4) 7... Nfd7 $146 {[%emt 0:07:30]} (7... exf3 $1 $11 8. Nxf3 (8. Qxe5 f2+ 9. Kd2 fxg1=R $17) 8... Nxf3+ 9. gxf3 a6) ({Predecessor:} 7... exf3 8. gxf3 Ned7 9. O-O-O g6 10. Nge2 Nb6 11. Ng3 Bd7 12. Bxf6 exf6 13. Re1+ Be7 14. Qxf6 {1-0 (34) Barranco Montilla,C (2190)-Erra Soler,G (1765) Santa Eulalia de Roncana 2019}) 8. fxe4 $16 {[%emt 0:01:00] White is better.} Bg4 {[%emt 0:03:07]} 9. h3 {[%emt 0:01:02]} Bh5 {[%emt 0:01:09]} 10. g4 {[%emt 0:13:07]} Bg6 {[%emt 0:00:24]} 11. Be2 {[%emt 0:00:30] White is more active.} (11. O-O-O $16) 11... c6 {[%emt 0:05:08]} (11... f6 $11 12. Be3 Bf7) 12. O-O-O $1 $14 {[%emt 0:06:06]} Qb6 {[%emt 0:03:05]} (12... f6 $1 $14 13. Be3 Qa5) 13. Qd2 $1 $16 {[%emt 0:12:43]} O-O-O {[%emt 0:07:08] [#]} 14. Nf3 $1 {[%emt 0:02:01]} Nxf3 {[%emt 0:04:50]} 15. Bxf3 {[%emt 0:00:02]} Ne5 {[%emt 0:00:28]} 16. Be2 {[%emt 0:00:09]} f6 {[%emt 0:02:43]} 17. Be3 {[%emt 0:06:58]} ({White should try} 17. Na4 $16 Qc7 18. Be3) 17... Qa5 $11 {[%emt 0:00:24]} 18. Qd4 {[%emt 0:00:42]} Kb8 {[%emt 0:11:03]} 19. Bf4 {[%emt 0:02:09]} e6 $1 {[%emt 0:02:34]} 20. Bxe5+ {[%emt 0:09:29]} fxe5 {[%emt 0:00:05]} 21. Qxe5+ {[%emt 0:00:10]} Bd6 {[%emt 0:00:07]} 22. Qxg7 {[%emt 0:00:16] Threatens to win with dxc6.} (22. Qxe6 $2 Rhe8 23. h4 Rxe6 24. dxe6 Qe5 $19) 22... exd5 {[%emt 0:00:36]} 23. exd5 {[%emt 0:00:16] Strongly threatening Bd3.} Rhe8 {[%emt 0:00:26] Hoping for ...Be5.} 24. dxc6 $2 {[%emt 0:01:18][%mdl 8192]} (24. Bd3 $1 $15 Be5 25. Qh6) 24... bxc6 $2 {[%emt 0:00:05]} ({Black should play} 24... Qg5+ $19 25. Rd2 bxc6) 25. Qf6 $1 $14 {[%emt 0:11:08]} Qc5 {[%emt 0:03:02]} (25... Kc7 $1 $14 26. Qf2 Rb8 27. Rxd6 (27. Qf6 $2 Be5 $19) 27... Kxd6) 26. Rhe1 {[%emt 0:03:30]} Kc7 {[%emt 0:08:46] [#] White must now prevent ...Qe3+.} 27. Qd4 {[%emt 0:02:19]} Qa5 {[%emt 0:04:15]} (27... Qxd4 $16 28. Rxd4 Re3) 28. Qc4 {[%emt 0:01:07]} Rf8 {[%emt 0:00:35]} 29. Rf1 {[%emt 0:00:26] Against Rf4} Qc5 {[%emt 0:00:29]} 30. Qxc5 {[%emt 0:00:22]} Bxc5 {[%emt 0:00:05]} 31. Bd3 {[%emt 0:00:49]} Bxd3 {[%emt 0:00:40]} 32. cxd3 {[%emt 0:00:16]} Rxf1 {[%emt 0:00:27]} 33. Rxf1 {[%emt 0:00:04] aiming for Rf5.} Rxd3 $16 {[%emt 0:00:27][%mdl 4096] Endgame KRB-KRN} 34. Rf7+ {[%emt 0:00:11]} Rd7 {[%emt 0:00:18]} 35. Rf5 {[%emt 0:00:35]} Be3+ {[%emt 0:01:04]} 36. Kc2 {[%emt 0:00:21]} h6 {[%emt 0:00:08]} 37. Rf3 {[%emt 0:01:32]} Bg1 {[%emt 0:00:43]} (37... Rd2+ $16 {was worth a try.} 38. Kb3 Bg5) 38. Ne2 $18 {[%emt 0:00:35]} Bb6 {[%emt 0:00:25]} 39. Ng3 {[%emt 0:00:25]} Re7 {[%emt 0:00:28]} 40. Nf5 {[%emt 0:00:32]} Re6 {[%emt 0:00:23]} 41. Kd3 {[%emt 0:30:38]} c5 {[%emt 0:03:51]} (41... Kd7 $142 42. Rf4 Re5) 42. Rf4 {[%emt 0:00:00]} Kc6 {[%emt 0:00:46]} 43. Re4 {[%emt 0:00:00]} Rf6 {[%emt 0:02:37]} 44. Kc4 {[%emt 0:00:00]} Bd8 {[%emt 0:12:03]} 45. Re8 {[%emt 0:00:00]} Bc7 {[%emt 0:01:15]} 46. Rh8 {[%emt 0:00:00]} Bf4 {[%emt 0:00:07]} 47. Ne7+ {[%emt 0:00:00]} Kd6 {[%emt 0:01:26]} 48. Nf5+ {[%emt 0:00:00]} Kc6 {[%emt 0:00:22]} 49. Rc8+ {[%emt 0:00:00]} Kb7 {[%emt 0:00:15]} 50. Rxc5 {[%emt 0:00:00]} Re6 {[%emt 0:00:28]} 51. Nd4 {[%emt 0:00:00]} Re4 {[%emt 0:00:23]} 52. Rd5 {[%emt 0:00:49]} Bg5 {[%emt 0:00:18]} 53. a4 {[%emt 0:00:52]} Re3 {[%emt 0:00:42]} (53... Bf6 {is a better defense.} 54. Kd3 Rf4) 54. Rb5+ {[%emt 0:00:09]} Kc7 {[%emt 0:00:32] White has a decisive advantage.} 55. Rb3 {[%emt 0:00:08]} Re1 {[%emt 0:00:53]} 56. Rf3 {[%emt 0:01:45]} Re7 {[%emt 0:01:14]} 57. b4 {[%emt 0:00:14] White used his chance.  Weighted Error Value: White=0.34/Black=0.33} 1-0

[Event "Austrian Championship 2022"]
[Site "Vienna"]
[Date "2022.08.12"]
[Round "1.4"]
[White "Exler, Veronika"]
[Black "Stanec, Nikolaus"]
[Result "0-1"]
[ECO "B22"]
[WhiteElo "2132"]
[BlackElo "2460"]
[Annotator "TA"]
[PlyCount "84"]
[EventDate "2022.08.12"]
[EventType "swiss"]
[EventCountry "AUT"]
[SourceTitle "playchess.com"]
[Source "ChessBase"]
[SourceQuality "1"]
[TimeControl "40/5400+30:1800+30"]

{[%evp 12,84,35,28,35,43,55,45,78,74,92,89,122,89,57,0,0,0,0,0,0,0,2,0,0,0,0,0,0,0,0,0,0,0,0,0,0,-10,-12,-12,-12,-12,-12,-14,-14,-14,-14,-14,-16,-16,-16,-17,-63,-63,-53,-53,-53,-53,-56,-63,-63,-73,-96,-96,-39,-42,-42,-42,-8,-38,-38,-42,-42,-49,-31]} 1. e4 {[%emt 0:00:01]} c5 {[%emt 0:02:49]} 2. c3 {[%emt 0:00:06]} g6 {[%emt 0:02:05]} 3. d4 {[%emt 0:00:06]} cxd4 {[%emt 0:00:05]} 4. cxd4 {[%emt 0:00:05]} d5 {[%emt 0:00:05]} 5. e5 {[%emt 0:00:30]} Nc6 {[%emt 0:00:07]} 6. h3 {[%emt 0:06:17]} Bg7 {[%emt 0:01:24]} 7. Nc3 {[%emt 0:00:37][%cal Bb1c3,Bc3b5,Bb5c7][%mdl 32]} f6 {[%emt 0:00:30] B22: Sicilian: 2 c3.} 8. f4 {[%emt 0:00:23][%cal Bf2f4,Bf4e5][%mdl 32]} fxe5 {[%emt 0:09:48]} 9. fxe5 {[%emt 0:00:27]} e6 {[%emt 0:00:53] [#] White is slightly better.} 10. Nb5 $146 {[%emt 0:22:42]} ({Predecessor:} 10. Nf3 Nge7 11. g4 O-O 12. Bg2 b6 13. Bg5 Ba6 14. a3 Rc8 15. h4 h6 16. Be3 {1-0 (37) Bhatia,K (2036)-Bourne,I (1918) Daventry 2014}) 10... Qh4+ {[%emt 0:06:05]} 11. Ke2 {[%emt 0:00:17]} Bf8 {[%emt 0:09:20] [#]} 12. Nc7+ $1 {[%emt 0:31:36]} ({Don't play} 12. Nf3 Qd8 $14) 12... Kd8 {[%emt 0:00:19]} 13. Nf3 {[%emt 0:00:09]} (13. Nb5 $1 $14) 13... Nxd4+ $1 $11 {[%emt 0:00:34]} (13... Qe4+ $2 14. Kf2 Kxc7 15. Bd3 $18) 14. Qxd4 {[%emt 0:03:59]} Qxd4 {[%emt 0:00:12] Dancing on a razor blade.} 15. Nxe6+ $1 {[%emt 0:00:09]} Bxe6 {[%emt 0:00:04]} 16. Nxd4 {[%emt 0:00:03]} Kd7 {[%emt 0:05:32]} 17. Kf3 {[%emt 0:07:16] Strongly threatening Bb5+.} Ne7 {[%emt 0:07:45]} 18. Bf4 {[%emt 0:03:55]} Nc6 {[%emt 0:01:58]} 19. Bb5 {[%emt 0:05:51]} a6 {[%emt 0:04:45]} 20. Ba4 {[%emt 0:00:05] Nxc6 is the strong threat.} ({But not} 20. Nxe6 axb5 21. Ng5 Nd4+ 22. Kf2 Bc5 $17) 20... b5 {[%emt 0:08:54]} 21. Nxc6 {[%emt 0:01:06][%cal Oc6d4]} bxa4 {[%emt 0:00:31]} 22. Rac1 {[%emt 0:01:39] Threatens to win with Nd4.} Rc8 {[%emt 0:01:33]} 23. Nd4 {[%emt 0:02:22] aiming for Rxc8.} Be7 {[%emt 0:05:50]} 24. Rxc8 {[%emt 0:05:29]} Rxc8 {[%emt 0:00:30]} 25. Rc1 {[%emt 0:00:12]} Rxc1 {[%emt 0:03:42]} 26. Bxc1 {[%emt 0:00:02]} Bf5 {[%emt 0:01:21]} 27. Nxf5 {[%emt 0:07:59]} gxf5 {[%emt 0:00:18][%mdl 4096] Endgame KB-KB} 28. Be3 {[%emt 0:00:25]} Ke6 {[%emt 0:01:25]} 29. Bd4 {[%emt 0:00:08]} Bg5 {[%emt 0:05:09]} 30. g4 {[%emt 0:00:54]} Bd2 {[%emt 0:00:42]} 31. Kg3 $1 {[%emt 0:00:27]} fxg4 {[%emt 0:03:48]} (31... Bh6 $11) 32. hxg4 $15 {[%emt 0:00:21]} Bg5 {[%emt 0:00:37]} 33. Kf3 {[%emt 0:00:12]} Bc1 {[%emt 0:05:26]} 34. Kg3 {[%emt 0:00:26]} Bh6 {[%emt 0:02:05]} 35. Kf3 {[%emt 0:00:11]} Bg5 {[%emt 0:00:07]} 36. Kg3 {[%emt 0:00:20]} Bc1 {[%emt 0:00:12]} 37. Kf3 {[%emt 0:00:22]} a3 {[%emt 0:00:46]} (37... Bh6 $17) 38. bxa3 {[%emt 0:00:10]} Bxa3 {[%emt 0:00:06]} 39. Kf4 {[%emt 0:02:07]} a5 {[%emt 0:00:34][%cal Ba6a5,Ba5a4,Ba4a3][%mdl 32]} 40. Kf3 {[%emt 0:00:30]} a4 {[%emt 0:00:10] Black is slightly better.} 41. Bc3 {[%emt 0:17:01]} Bc1 {[%emt 0:01:12]} 42. Bd4 {[%emt 0:00:11]} a3 {[%emt 0:01:23] Weighted Error Value: White=0.03 (flawless) /Black=0.06 (flawless)} 0-1

[Event "Austrian Championship 2022"]
[Site "Vienna"]
[Date "2022.08.12"]
[Round "1.4"]
[White "Mayrhuber, Tobias"]
[Black "Nolz, Tom"]
[Result "1/2-1/2"]
[ECO "C40"]
[WhiteElo "2010"]
[BlackElo "2230"]
[Annotator "TA"]
[PlyCount "164"]
[EventDate "2022.08.12"]
[EventType "swiss"]
[EventCountry "AUT"]
[SourceTitle "playchess.com"]
[Source "ChessBase"]
[SourceQuality "1"]
[TimeControl "40/5400+30:1800+30"]

{[%evp 9,164,27,27,3,14,13,8,0,38,0,0,0,0,0,12,0,-14,8,35,27,33,-407,-195,-417,-404,-397,-394,-414,-412,-462,-178,-178,-166,-168,-168,-161,-162,-178,-166,-185,-185,-228,-164,-170,-158,-229,-164,-205,-204,-229,-227,-246,-264,-248,-194,-258,-185,-204,-195,-192,-194,-221,-224,-227,-136,-98,-12,-8,0,-8,0,0,0,0,11,0,0,0,0,0,0,-67,8,12,26,0,0,-7,-7,-7,-7,-7,-7,-8,-8,-8,-8,-8,-8,-8,-8,-8,-8,-8,-8,-8,-8,-8,-8,-8,-8,-8,0,0,0,0,0,0,0,0,0,0,0,0,0,0,0,0,0,0,0,0,0,0,0,0,0,0,0,0,0,0,0,0,0,0,0,0,0,0,0,0,0,0,0,0,0]} 1. e4 {[%emt 0:00:09]} e5 {[%emt 0:00:23]} 2. Nf3 {[%emt 0:00:07]} d5 {[%emt 0:00:10]} 3. Nxe5 {[%emt 0:03:11]} Bd6 {[%emt 0:03:22]} 4. d4 {[%emt 0:01:23]} dxe4 {[%emt 0:00:21]} 5. Nc4 {[%emt 0:01:35]} Be7 {[%emt 0:01:29]} 6. Nc3 {[%emt 0:02:12] C40: Latvian and Elephant Gambits.} Nf6 {[%emt 0:00:06]} 7. Bf4 {[%emt 0:06:22]} O-O {[%emt 0:03:58] [#]} 8. Be2 $146 {[%emt 0:02:23]} ({Predecessor:} 8. Qd2 Be6 9. Be2 Nc6 10. O-O-O Bb4 11. Bg5 Na5 12. Nxa5 Bxa5 13. d5 Bf5 14. g4 {0-1 (30) Gallotto,S-Pasteur,V corr 1999}) 8... a6 {[%emt 0:11:34]} 9. a4 {[%emt 0:05:54]} Nc6 {[%emt 0:03:08]} 10. d5 {[%emt 0:04:57]} Nb4 {[%emt 0:00:11]} 11. Ne3 {[%emt 0:00:15]} Bd6 {[%emt 0:11:17]} 12. Bg5 {[%emt 0:10:43]} Re8 $36 {[%emt 0:00:49][%mdl 2048] Black is more active.} 13. Qd4 {[%emt 0:02:46]} Ng4 {[%emt 0:18:37]} 14. Bxd8 {[%emt 0:15:38]} Nxe3 {[%emt 0:00:08]} 15. Qxe4 {[%emt 0:00:38][%mdl 8192]} ({Of course not} 15. Qxe3 Nxc2+ 16. Kd2 Nxe3 17. Bxc7 Nf1+ 18. Ke1 Bxc7 $17) (15. Kd2 $14 {is the one way to stay ahead.} Nbxc2 16. Qxe4 Rxe4 17. Nxe4 Nxa1 18. fxe3 (18. Kxe3 Nc2+ 19. Kd2 Bf4+ 20. Kxc2 Bf5 $15)) 15... Rxe4 {[%emt 0:10:45]} (15... Nexc2+ $142 16. Kd1 (16. Kd2 $2 Rxe4 17. Nxe4 Bf4+ 18. Kc3 Bf5 $19) 16... Rxe4 17. Nxe4 Nxa1 18. Nxd6 cxd6) 16. Nxe4 $2 {[%emt 0:00:56]} (16. fxe3 Re8 17. Bg5 Nxc2+ 18. Kf2) 16... Nexc2+ $19 {[%emt 0:00:45]} 17. Kd2 {[%emt 0:12:33]} Bf4+ {[%emt 0:00:40]} 18. Kc3 {[%emt 0:00:19]} Bf5 {[%emt 0:02:01]} 19. Bf3 {[%emt 0:06:49][%cal Od8h4]} Nxa1 $2 {[%emt 0:15:34]} (19... Rxd8 20. Rad1 Be5+ 21. Kb3 a5) 20. Kxb4 {[%emt 0:01:47]} Nc2+ {[%emt 0:00:10]} ({Not} 20... Rxd8 21. Rxa1 Re8 22. Nc3 $15) 21. Kc3 {[%emt 0:00:25]} Rxd8 {[%emt 0:00:09]} 22. Kxc2 {[%emt 0:00:12]} Rxd5 {[%emt 0:00:16]} 23. g3 {[%emt 0:05:45]} Be5 {[%emt 0:01:58]} 24. Re1 {[%emt 0:01:21]} Kf8 {[%emt 0:03:18]} 25. Re3 {[%emt 0:04:25]} b5 {[%emt 0:03:45]} 26. axb5 {[%emt 0:02:42]} Rxb5 {[%emt 0:02:06]} 27. b3 {[%emt 0:00:36]} (27. Rb3 $17 {was necessary.}) 27... Ra5 {[%emt 0:00:39]} 28. Kd3 {[%emt 0:00:46]} c5 {[%emt 0:02:25]} 29. g4 {[%emt 0:01:58]} Bd7 {[%emt 0:01:06] And now ...Bb5+ would win.} 30. Nc3 {[%emt 0:02:56]} Bd4 {[%emt 0:01:21]} 31. Re2 {[%emt 0:01:10]} Ra1 {[%emt 0:00:10]} 32. Rc2 {[%emt 0:01:55]} (32. Kc2 $142) 32... g6 {[%emt 0:02:11]} 33. Ne4 {[%emt 0:00:26]} Bb5+ {[%emt 0:00:15]} 34. Kd2 {[%emt 0:00:08]} Rf1 {[%emt 0:01:31] Threatens to win with ...f5.} 35. Be2 {[%emt 0:00:18]} Rh1 {[%emt 0:00:08]} 36. Nxc5 {[%emt 0:01:05]} Bxf2 {[%emt 0:00:47] A strong pair of Bishops.} (36... Rxh2 $19 37. Bxb5 axb5) 37. Nxa6 $17 {[%emt 0:00:16]} Be1+ {[%emt 0:00:48]} (37... Bd7 $17 38. Nc5 Bxc5 39. Rxc5 Rxh2) 38. Ke3 $11 {[%emt 0:00:09]} Bxe2 {[%emt 0:00:36]} (38... Rxh2 $2 39. Rc8+ Be8 40. Bb5 $18) 39. Rxe2 {[%emt 0:00:13][%mdl 4096] Endgame KRB-KRN} Ba5 {[%emt 0:00:10]} 40. b4 {[%emt 0:01:20]} Bb6+ {[%emt 0:00:05]} 41. Kd3 {[%emt 0:11:27]} Rg1 {[%emt 0:02:55]} 42. Re4 {[%emt 0:02:09]} Kg7 {[%emt 0:09:04]} 43. b5 {[%emt 0:03:38]} h5 {[%emt 0:01:33]} 44. gxh5 {[%emt 0:02:11]} gxh5 {[%emt 0:00:13]} 45. Nb4 {[%emt 0:05:18]} (45. Re5 $11) 45... Rg2 {[%emt 0:01:51]} (45... Rg5 $15) 46. Nd5 {[%emt 0:00:35]} Bg1 {[%emt 0:01:04]} 47. Nf4 {[%emt 0:02:59]} Rxh2 {[%emt 0:00:31] The position is equal.} 48. Nxh5+ {[%emt 0:00:26][%mdl 64] [#] Remove Defender} Rxh5 {[%emt 0:00:26] KRB-KR} 49. Rg4+ {[%emt 0:00:05]} Kf6 {[%emt 0:00:08]} 50. Rxg1 {[%emt 0:00:05]} Rxb5 {[%emt 0:00:05] KR-KR} 51. Ke4 {[%emt 0:00:23]} Rb4+ {[%emt 0:00:34]} 52. Kf3 {[%emt 0:00:09]} Kf5 {[%emt 0:00:06]} 53. Ra1 {[%emt 0:00:11]} Rb3+ {[%emt 0:00:05]} 54. Kf2 {[%emt 0:00:05]} Kg4 {[%emt 0:00:19]} 55. Ra4+ {[%emt 0:00:10]} Kg5 {[%emt 0:00:06]} 56. Ra5+ {[%emt 0:00:09]} f5 {[%emt 0:00:22]} 57. Ra4 {[%emt 0:00:29]} Rc3 {[%emt 0:00:26]} 58. Rb4 {[%emt 0:00:15]} Ra3 {[%emt 0:00:10]} 59. Rc4 {[%emt 0:00:08]} Rh3 {[%emt 0:00:55]} 60. Ra4 {[%emt 0:00:25]} Rh4 {[%emt 0:01:36]} 61. Rxh4 {[%emt 0:00:15]} Kxh4 {[%emt 0:00:02] KP-K} 62. Kf3 {[%emt 0:00:07]} Kg5 {[%emt 0:00:15]} 63. Kg3 {[%emt 0:00:05]} f4+ {[%emt 0:00:18]} 64. Kf3 {[%emt 0:00:04][%cal Bg3f3,Bf3f2,Bf2e2][%mdl 32]} Kf5 {[%emt 0:00:04]} 65. Kf2 {[%emt 0:00:07]} Ke4 {[%emt 0:00:04]} 66. Ke2 {[%emt 0:00:05]} Kd4 {[%emt 0:00:05][%cal Be4d4,Bd4e5,Be5f6,Bf6f5,Bf5g4,Bg4h4,Bh4g5][%mdl 32]} 67. Kf3 {[%emt 0:00:05]} Ke5 {[%emt 0:00:03]} 68. Kf2 {[%emt 0:00:07]} Kf6 {[%emt 0:00:08]} 69. Kf3 {[%emt 0:00:06]} Kf5 {[%emt 0:00:05]} 70. Kf2 {[%emt 0:00:04]} Kg4 {[%emt 0:00:05]} 71. Kg2 {[%emt 0:00:06]} Kh4 {[%emt 0:00:05]} 72. Kf3 {[%emt 0:00:04]} Kg5 {[%emt 0:00:04]} 73. Kf2 {[%emt 0:00:07]} Kg4 {[%emt 0:00:05]} 74. Kg2 {[%emt 0:00:04]} f3+ {[%emt 0:00:03]} 75. Kf2 {[%emt 0:00:06]} Kf4 {[%emt 0:00:05]} 76. Kf1 {[%emt 0:00:05]} Ke3 {[%emt 0:00:07]} (76... Kg3 $5 77. Kg1 Kh4 $11) 77. Ke1 {[%emt 0:00:04]} Kd3 {[%emt 0:00:05]} 78. Kf2 {[%emt 0:00:05]} Ke4 {[%emt 0:00:03]} 79. Kf1 {[%emt 0:00:07]} Kf4 {[%emt 0:00:08]} (79... Kd3 $5) 80. Kf2 {[%emt 0:00:04]} Kg4 {[%emt 0:00:03]} (80... Ke4 $5) 81. Kf1 {[%emt 0:00:07]} Kg3 {[%emt 0:00:05] [#] ( -> ...f2)} 82. Kg1 {[%emt 0:00:04]} f2+ {[%emt 0:00:08] Black had all chances to win.  Weighted Error Value: White=0.30/Black=0.23 (precise)} 1/2-1/2

[Event "Austrian Championship 2022"]
[Site "Vienna"]
[Date "2022.08.12"]
[Round "1.5"]
[White "Diermair, Andreas"]
[Black "Steiner, Bruno"]
[Result "1-0"]
[ECO "E05"]
[WhiteElo "2452"]
[BlackElo "2126"]
[Annotator "TA"]
[PlyCount "67"]
[EventDate "2022.08.12"]
[EventType "swiss"]
[EventCountry "AUT"]
[SourceTitle "playchess.com"]
[Source "ChessBase"]
[SourceQuality "1"]
[TimeControl "40/5400+30:1800+30"]

{[%evp 13,66,0,13,18,24,27,37,32,27,0,0,2,0,0,0,0,27,35,23,32,40,21,26,37,26,-14,-6,-24,-13,-25,40,102,135,127,143,132,232,76,324,338,549,548,543,354,336,8,13,0,767,743,29984,29985,29985,2693,29999]} 1. d4 {[%emt 0:00:04]} d5 {[%emt 0:00:14]} 2. Nf3 {[%emt 0:00:16]} Nf6 {[%emt 0:00:18]} 3. c4 {[%emt 0:00:09]} e6 {[%emt 0:00:06]} 4. g3 {[%emt 0:00:14]} Be7 {[%emt 0:00:32]} 5. Bg2 {[%emt 0:00:09]} O-O {[%emt 0:00:08]} 6. O-O {[%emt 0:00:17]} dxc4 {[%emt 0:00:10]} 7. Qc2 {[%emt 0:00:38]} b5 {[%emt 0:00:37]} 8. a4 {[%emt 0:01:51] E05: Open Catalan: 5 Nf3 Be7.} Bb7 {[%emt 0:00:18]} 9. axb5 {[%emt 0:00:41]} a6 {[%emt 0:00:12]} 10. Nc3 {[%emt 0:03:28] Prevents Be4. White is slightly better.} c5 {[%emt 0:07:05] [#]} 11. bxc6 $146 {[%emt 0:10:21]} ({Predecessor:} 11. Be3 axb5 12. Rxa8 Bxa8 13. Nxb5 Qa5 14. Na3 cxd4 15. Nxc4 Qc7 16. Nxd4 Bxg2 17. Kxg2 {1-0 (69) Sidorika,V (2331)-Titus,A (2154) Chess.com INT 2021}) 11... Nxc6 {[%emt 0:02:25]} 12. Rd1 {[%emt 0:01:01]} Nb4 {[%emt 0:05:09]} 13. Qb1 {[%emt 0:02:08]} h6 {[%emt 0:06:06]} 14. Bf4 {[%emt 0:06:50]} Nbd5 {[%emt 0:05:58]} 15. Ne5 {[%emt 0:09:44]} Nxc3 {[%emt 0:00:30]} 16. bxc3 {[%emt 0:00:30]} Bxg2 {[%emt 0:00:30]} 17. Kxg2 {[%emt 0:00:30]} Qd5+ {[%emt 0:00:30]} 18. f3 Rfb8 19. Qc2 {[%emt 0:05:57] Hoping for e4.} Rb3 $1 {[%emt 0:25:03]} 20. Ra4 {[%emt 0:08:09]} Qb5 {[%emt 0:08:16]} 21. Rxc4 {[%emt 0:03:53]} g5 {[%emt 0:01:10]} (21... Bd6 $11) 22. Bc1 $36 {[%emt 0:01:49][%mdl 2048] White has strong initiative.} Bd6 {[%emt 0:06:14] Prevents Rc7.} 23. Rc6 {[%emt 0:06:55] White is more active.} Bxe5 {[%emt 0:03:11]} 24. Rc5 {[%emt 0:00:37]} ({Don't play} 24. dxe5 Qxc6 25. Qxb3 Nd5 $16) 24... Qb7 {[%emt 0:09:11]} (24... Qb6 $16 {was called for.}) 25. Rxe5 $2 {[%emt 0:01:59]} (25. dxe5 $18 {is the precise move to win.} Nd5 26. h4) 25... a5 $2 {[%emt 0:03:48] [#]} (25... Nd5 $16) 26. h4 $1 $18 {[%emt 0:06:02][%cal Bh2h4,Bh4g5,Bg5h6][%mdl 32]} a4 $2 {[%emt 0:05:11]} (26... Nd7 {keeps fighting.} 27. Re3 Nf8 28. hxg5 h5) 27. hxg5 {[%emt 0:01:16]} Nd5 {[%emt 0:00:13]} 28. gxh6 {[%emt 0:03:06]} Rxc3 {[%emt 0:01:39]} 29. Rg5+ $2 {[%emt 0:04:52]} ({White should try} 29. Qe4 $18 {Black must now prevent Qg4+.} Kh8 30. Qh4) 29... Kh8 $11 {[%emt 0:02:59]} 30. Qd2 {[%emt 0:04:06][%cal Og5d5] Strongly threatening Rxd5!} a3 $2 {[%emt 0:01:54][%mdl 8192] [#]} (30... Ne3+ $11 31. Kg1 Qc7) 31. Rxd5 $1 $18 {[%emt 0:01:45][%cal Od2f4] White wants to mate with Qf4!} Rxc1 {[%emt 0:02:02] [#]} (31... Rxf3 32. Rd8+) 32. Qg5 $1 {[%emt 0:00:58][%csl Gh6][%cal Rg5g7]} f5 {[%emt 0:00:44]} 33. Rb5 {[%emt 0:01:22]} (33. Rd8+ $142 Rxd8 34. Qxd8+ Kh7 35. Rxc1 Qf7 36. Rc7 Qxc7 37. Qxc7+ Kxh6 38. Qa7) 33... Qxb5 {[%emt 0:00:47]} 34. Qg7# {[%emt 0:00:02] Weighted Error Value: White=0.49/Black=0.81} 1-0